[Event "Stay Safe Play From Home 363"]
[Site "Emanuel Lasker Arena"]
[Date "2020.08.06"]
[Round "1"]
[White "Haris kollari 13"]
[Black "Ao017545"]
[Result "1-0"]
[WhiteElo "1798"]
[BlackElo "1665"]
[Annotator "NA RC"]
[PlyCount "77"]
[EventDate "2020.08.06"]
[EventType "swiss (blitz)"]
[TimeControl "180"]

1. e4 {[%emt 0:00:01]} e5 {[%emt 0:00:00]} 2. f4 {[%emt 0:00:02]} Nf6 {[%emt 0:00:03]} 3. fxe5 {[%emt 0:00:02]} Nxe4 {[%emt 0:00:01]} 4. Qf3 {[%emt 0:00:01]} f5 {[%emt 0:00:03]} 5. d3 {[%emt 0:00:02]} Nc5 {[%emt 0:00:12]} 6. Qxf5 {[%emt 0:00:02]} d5 {[%emt 0:00:02]} 7. Qf3 {[%emt 0:00:09]} Nc6 {[%emt 0:00:11]} 8. Nc3 {[%emt 0:00:01]} Nd4 {[%emt 0:00:02]} 9. Qd1 {[%emt 0:00:01]} Qh4+ {[%emt 0:00:05]} 10. g3 {[%emt 0:00:02]} Qe7 {[%emt 0:00:09]} 11. Bf4 {[%emt 0:00:17]} h5 {[%emt 0:00:04]} 12. Nxd5 {[%emt 0:00:02]} Qd8 {[%emt 0:00:07]} 13. Bg2 {[%emt 0:00:01]} Bg4 {[%emt 0:00:03]} 14. Qd2 {[%emt 0:00:04]} Nf3+ {[%emt 0:00:11]} 15. Nxf3 {[%emt 0:00:02]} Qxd5 {[%emt 0:00:01]} 16. Ng5 {[%emt 0:00:06]} Qd7 {[%emt 0:00:15]} 17. h3 {[%emt 0:00:02]} Bf5 {[%emt 0:00:08]} 18. O-O-O {[%emt 0:00:02]} O-O-O {[%emt 0:00:03]} 19. Kb1 {[%emt 0:00:03]} Qb5 {[%emt 0:00:02]} 20. d4 {[%emt 0:00:02]} Na4 {[%emt 0:00:05]} 21. b3 {[%emt 0:00:12]} Qb6 {[%emt 0:00:18]} 22. Be4 {[%emt 0:00:05]} Bb4 {[%emt 0:00:09]} 23. Qd3 {[%emt 0:00:01]} Nc3+ {[%emt 0:00:04]} 24. Ka1 {[%emt 0:00:03]} Bxe4 {[%emt 0:00:02]} 25. Nxe4 {[%emt 0:00:02]} Qa5 {[%emt 0:00:05]} 26. Nxc3 {[%emt 0:00:04]} Bxc3+ {[%emt 0:00:02]} 27. Kb1 {[%emt 0:00:01]} Rd5 {[%emt 0:00:02]} 28. Qc4 {[%emt 0:00:08]} b5 {[%emt 0:00:05]} 29. Qxd5 {[%emt 0:00:05]} Qa3 {[%emt 0:00:02]} 30. Bc1 {[%emt 0:00:03]} Qb4 {[%emt 0:00:13]} 31. Qa8+ {[%emt 0:00:02]} Kd7 {[%emt 0:00:00]} 32. Qxh8 {[%emt 0:00:01]} a5 {[%emt 0:00:02]} 33. Qxg7+ {[%emt 0:00:02]} Kc6 {[%emt 0:00:02]} 34. d5+ {[%emt 0:00:03]} Kb7 {[%emt 0:00:01]} 35. d6 {[%emt 0:00:04]} a4 {[%emt 0:00:00]} 36. Qxc7+ {[%emt 0:00:03]} Ka6 {[%emt 0:00:00]} 37. Qc6+ {[%emt 0:00:02]} Ka7 {[%emt 0:00:03]} 38. d7 {[%emt 0:00:01]} axb3 {[%emt 0:00:03]} 39. cxb3 {[%emt 0:00:03] Zaman} 1-0